[Event "CZE-ch Women 2019"]
[Site "Prague"]
[Date "2019.06.19"]
[Round "5.5"]
[White "Miturova, Magdalena"]
[Black "Petrova, Kristyna"]
[Result "1-0"]
[ECO "A05"]
[WhiteElo "2220"]
[BlackElo "2259"]
[Annotator "NA"]
[PlyCount "115"]
[EventDate "2019.06.15"]
[EventType "tourn"]
[EventCountry "CZE"]
[SourceTitle "playchess.com"]
[Source "ChessBase"]
[SourceQuality "1"]
[TimeControl "40/5400+30:1800+30"]

1. Nf3 {[%emt 0:00:00]} Nf6 {[%emt 0:00:00]} 2. g3 {[%emt 0:00:00]} d5 {[%emt 0:00:07]} 3. Bg2 {[%emt 0:00:00]} g6 {[%emt 0:00:37]} 4. d4 {[%emt 0:00:36]} Bg7 {[%emt 0:00:09]} 5. O-O {[%emt 0:01:56]} O-O {[%emt 0:00:07]} 6. b3 {[%emt 0:04:13]} c5 {[%emt 0:01:35]} 7. e3 {[%emt 0:03:56]} Nc6 {[%emt 0:04:01]} 8. Bb2 {[%emt 0:00:37]} cxd4 {[%emt 0:14:08]} 9. Nxd4 {[%emt 0:01:46]} Nxd4 {[%emt 0:00:21]} 10. Bxd4 {[%emt 0:01:54]} Qd6 {[%emt 0:00:13]} 11. Bb2 {[%emt 0:04:05]} Rd8 {[%emt 0:02:10]} 12. Na3 {[%emt 0:08:46]} Bg4 {[%emt 0:10:15]} 13. f3 {[%emt 0:00:18]} Be6 {[%emt 0:02:19]} 14. Qe2 {[%emt 0:13:29]} Ne8 {[%emt 0:09:28]} 15. Nb5 {[%emt 0:05:15]} Qa6 {[%emt 0:03:08]} 16. Bxg7 {[%emt 0:00:24]} Nxg7 {[%emt 0:01:36]} 17. g4 {[%emt 0:03:44]} Bd7 {[%emt 0:04:54]} 18. a4 {[%emt 0:02:01]} Qb6 {[%emt 0:08:35]} 19. Rad1 {[%emt 0:02:08]} a6 {[%emt 0:02:40]} 20. Nc3 {[%emt 0:01:26]} Bc6 {[%emt 0:00:03]} 21. Qf2 {[%emt 0:04:00]} Qb4 {[%emt 0:11:38]} 22. Rd3 {[%emt 0:03:18]} h5 {[%emt 0:07:50]} 23. h3 {[%emt 0:01:37]} Rd6 {[%emt 0:04:21]} 24. Ne2 {[%emt 0:05:01]} Rc8 {[%emt 0:03:31]} 25. Rfd1 {[%emt 0:07:02]} hxg4 {[%emt 0:00:53]} 26. hxg4 {[%emt 0:00:03]} b5 {[%emt 0:01:12]} 27. a5 {[%emt 0:13:52]} Qxa5 {[%emt 0:01:02]} 28. Qh4 {[%emt 0:00:04]} Qd8 {[%emt 0:01:32]} 29. Kf2 {[%emt 0:01:41]} e5 {[%emt 0:01:47]} 30. Qh2 {[%emt 0:03:03]} f6 {[%emt 0:00:07]} 31. Rh1 {[%emt 0:00:44]} Kf7 {[%emt 0:00:12]} 32. f4 {[%emt 0:02:24]} d4 {[%emt 0:01:35]} 33. e4 {[%emt 0:00:11]} Qe8 {[%emt 0:02:35]} 34. f5 {[%emt 0:00:37]} g5 {[%emt 0:01:16]} 35. Qh6 {[%emt 0:01:53]} Qg8 {[%emt 0:00:10]} 36. Qg6+ {[%emt 0:00:31]} Kf8 {[%emt 0:00:05]} 37. Rh7 {[%emt 0:01:16]} Rc7 {[%emt 0:00:50]} 38. Qh6 {[%emt 0:03:27]} Qf7 {[%emt 0:00:07]} 39. Ng3 {[%emt 0:00:35]} Be8 {[%emt 0:01:37]} 40. Nh5 {[%emt 0:00:36]} Rxc2+ {[%emt 0:00:25]} 41. Kg3 {[%emt 0:02:26]} Rc7 {[%emt 0:02:23]} 42. Nxg7 {[%emt 0:07:28]} Qxg7 {[%emt 0:00:13]} 43. Rxg7 {[%emt 0:00:02]} Rxg7 {[%emt 0:00:09]} 44. Rd1 {[%emt 0:02:37]} Rc6 {[%emt 0:00:29]} 45. Bf3 {[%emt 0:01:03]} Bf7 {[%emt 0:04:05]} 46. b4 {[%emt 0:01:17]} Bg8 {[%emt 0:00:35]} 47. Qh2 {[%emt 0:05:04]} Rh7 {[%emt 0:00:20]} 48. Qg1 {[%emt 0:00:39]} Rc2 {[%emt 0:01:31]} 49. Ra1 {[%emt 0:02:12]} Rc6 {[%emt 0:00:26]} 50. Ra3 {[%emt 0:03:05]} Rhc7 {[%emt 0:01:53]} 51. Qh1 {[%emt 0:01:02]} Kg7 {[%emt 0:00:33]} 52. Ra1 {[%emt 0:01:48]} Bf7 {[%emt 0:03:54]} 53. Qh3 {[%emt 0:04:11]} Bg8 {[%emt 0:02:12]} 54. Rh1 {[%emt 0:01:00]} Kf8 {[%emt 0:00:11]} 55. Qh8 {[%emt 0:00:25]} Rg7 {[%emt 0:07:05]} 56. Rh6 {[%emt 0:00:19]} Rd6 {[%emt 0:00:28]} 57. Bd1 {[%emt 0:01:32]} Rc6 {[%emt 0:01:20]} 58. Kf2 {[%emt 0:00:28]} 1-0

[Event "CZE-ch Women 2019"]
[Site "Prague"]
[Date "2019.06.20"]
[Round "6.1"]
[White "Novosadova, Kristyna"]
[Black "Petrova, Kristyna"]
[Result "0-1"]
[ECO "D37"]
[WhiteElo "2209"]
[BlackElo "2259"]
[Annotator "NA"]
[PlyCount "54"]
[EventDate "2019.06.15"]
[EventType "tourn"]
[EventCountry "CZE"]
[SourceTitle "playchess.com"]
[Source "ChessBase"]
[SourceQuality "1"]
[TimeControl "40/5400+30:1800+30"]

1. d4 {[%emt 0:00:00]} Nf6 {[%emt 0:00:00]} 2. c4 {[%emt 0:00:00]} e6 {[%emt 0:00:00]} 3. Nf3 {[%emt 0:00:00]} d5 {[%emt 0:00:00]} 4. Nc3 {[%emt 0:02:42]} Be7 {[%emt 0:00:43]} 5. g4 {[%emt 0:01:17]} Ne4 {[%emt 0:06:38]} 6. Rg1 {[%emt 0:05:27]} c5 {[%emt 0:02:43]} 7. cxd5 {[%emt 0:06:46]} exd5 {[%emt 0:04:31]} 8. Qa4+ {[%emt 0:00:26]} Nc6 {[%emt 0:02:54]} 9. Ne5 {[%emt 0:03:31]} O-O {[%emt 0:09:44]} 10. Nxc6 {[%emt 0:09:49]} bxc6 $17 {[%emt 0:00:05]} 11. Nxe4 {[%emt 0:18:17]} dxe4 {[%emt 0:01:37]} 12. Bg2 {[%emt 0:00:10]} cxd4 {[%emt 0:24:17]} 13. Bxe4 {[%emt 0:00:09]} Rb8 {[%emt 0:00:43]} 14. Qc2 {[%emt 0:03:31]} g6 {[%emt 0:03:25]} 15. Bf4 {[%emt 0:04:08]} Bd6 {[%emt 0:04:50]} 16. Bg3 {[%emt 0:09:14]} c5 {[%emt 0:03:08]} 17. Bxd6 {[%emt 0:01:44]} Qxd6 {[%emt 0:00:03]} 18. Rg3 {[%emt 0:02:54]} Re8 {[%emt 0:02:42]} 19. Kf1 {[%emt 0:09:54]} c4 {[%emt 0:01:24]} 20. Kg1 {[%emt 0:01:22]} Qe5 {[%emt 0:03:03]} 21. Bf3 {[%emt 0:04:11]} Ba6 {[%emt 0:03:14]} 22. Qa4 {[%emt 0:05:59]} Re6 {[%emt 0:02:41]} 23. Qa3 {[%emt 0:02:59]} d3 {[%emt 0:02:00]} 24. exd3 {[%emt 0:01:12]} cxd3 {[%emt 0:00:28]} 25. Rd1 {[%emt 0:02:23]} d2 {[%emt 0:01:56]} 26. Qe3 {[%emt 0:01:33]} Qxb2 {[%emt 0:01:45]} 27. Qxa7 {[%emt 0:01:44]} Re1+ {[%emt 0:00:13]} 0-1

[Event "CZE-ch Women 2019"]
[Site "Prague"]
[Date "2019.06.20"]
[Round "6.2"]
[White "Kanakova, Natalie"]
[Black "Miturova, Magdalena"]
[Result "0-1"]
[ECO "C05"]
[WhiteElo "2201"]
[BlackElo "2220"]
[Annotator "NA"]
[PlyCount "106"]
[EventDate "2019.06.15"]
[EventType "tourn"]
[EventCountry "CZE"]
[SourceTitle "playchess.com"]
[Source "ChessBase"]
[SourceQuality "1"]
[TimeControl "40/5400+30:1800+30"]

1. e4 {[%emt 0:00:00]} e6 {[%emt 0:00:00]} 2. d4 {[%emt 0:00:34]} d5 {[%emt 0:00:00]} 3. Nd2 {[%emt 0:01:10]} Nf6 {[%emt 0:00:00]} 4. Bd3 {[%emt 0:02:14]} c5 {[%emt 0:00:52]} 5. c3 {[%emt 0:01:00]} Nc6 {[%emt 0:01:30]} 6. Ngf3 {[%emt 0:02:16]} cxd4 {[%emt 0:09:08]} 7. cxd4 {[%emt 0:02:27]} Bb4 {[%emt 0:16:50]} 8. e5 {[%emt 0:06:55]} Nd7 {[%emt 0:00:14]} 9. O-O {[%emt 0:00:45]} f5 {[%emt 0:03:47]} 10. exf6 $16 {[%emt 0:05:40]} Qxf6 {[%emt 0:02:37]} 11. Nb3 {[%emt 0:03:30]} h6 {[%emt 0:02:13]} 12. Bc2 {[%emt 0:05:20]} Bd6 {[%emt 0:12:55]} 13. a3 {[%emt 0:03:25]} O-O {[%emt 0:00:26]} 14. Qd3 {[%emt 0:12:28]} Rd8 {[%emt 0:00:24]} 15. Bd2 {[%emt 0:13:38]} Nf8 {[%emt 0:00:43]} 16. Rae1 {[%emt 0:02:50]} a5 {[%emt 0:11:38]} 17. Bc3 {[%emt 0:04:01]} Ne7 {[%emt 0:00:56]} 18. Bxa5 {[%emt 0:08:55]} b6 {[%emt 0:05:01]} 19. Bxb6 {[%emt 0:00:03]} Ba6 {[%emt 0:00:06]} 20. Qxa6 {[%emt 0:00:22]} Rxa6 {[%emt 0:00:07]} 21. Bxd8 {[%emt 0:00:03]} Rc6 {[%emt 0:03:41]} 22. Rc1 {[%emt 0:03:40]} g6 {[%emt 0:04:42]} 23. Bd3 {[%emt 0:03:38]} Rxc1 {[%emt 0:00:22]} 24. Rxc1 {[%emt 0:00:07]} Qf4 {[%emt 0:07:56]} 25. Nbd2 {[%emt 0:01:23]} g5 {[%emt 0:06:07]} 26. g3 {[%emt 0:00:06]} Qg4 {[%emt 0:00:18]} 27. Bc7 {[%emt 0:02:17]} Bxc7 {[%emt 0:03:27]} 28. Rxc7 {[%emt 0:00:04]} Nf5 {[%emt 0:00:28]} 29. Kg2 {[%emt 0:01:24]} Nh4+ {[%emt 0:03:23]} 30. Nxh4 {[%emt 0:00:12]} gxh4 {[%emt 0:00:01]} 31. h3 {[%emt 0:03:29]} Qxd4 {[%emt 0:00:06]} 32. Rc3 {[%emt 0:00:07]} hxg3 {[%emt 0:01:22]} 33. fxg3 {[%emt 0:00:07]} e5 {[%emt 0:01:04]} 34. Nf1 {[%emt 0:05:30]} Qb6 {[%emt 0:01:00]} 35. b4 {[%emt 0:00:55]} e4 {[%emt 0:00:44]} 36. Be2 {[%emt 0:00:29]} d4 {[%emt 0:00:55]} 37. Rc5 {[%emt 0:01:16]} Kg7 {[%emt 0:00:49]} 38. Re5 {[%emt 0:03:23]} d3 {[%emt 0:00:42]} 39. Bg4 {[%emt 0:01:24]} Qd4 {[%emt 0:00:20]} 40. Re7+ {[%emt 0:02:07]} Kf6 {[%emt 0:01:23]} 41. Re8 {[%emt 0:01:21]} Ng6 {[%emt 0:05:30]} 42. Re6+ {[%emt 0:01:06]} Kf7 {[%emt 0:01:09]} 43. Rc6 {[%emt 0:04:22]} Ne5 {[%emt 0:03:12]} 44. Bh5+ {[%emt 0:01:19]} Kg7 {[%emt 0:01:31]} 45. Rc7+ {[%emt 0:00:41]} Kf6 {[%emt 0:00:04]} 46. Rc8 {[%emt 0:00:26]} e3 {[%emt 0:04:58]} 47. Rf8+ {[%emt 0:01:32]} Kg7 {[%emt 0:00:10]} 48. Rf4 {[%emt 0:00:31]} Qb2+ {[%emt 0:00:25]} 49. Kg1 {[%emt 0:00:26]} e2 {[%emt 0:00:32]} 50. Re4 {[%emt 0:00:24]} exf1=Q+ {[%emt 0:01:37]} 51. Kxf1 {[%emt 0:00:02]} d2 {[%emt 0:01:02]} 52. Re3 {[%emt 0:01:55]} Qd4 {[%emt 0:03:52]} 53. Kf2 {[%emt 0:00:33]} Nc4 {[%emt 0:00:10]} 0-1

[Event "CZE-ch Women 2019"]
[Site "Prague"]
[Date "2019.06.20"]
[Round "6.3"]
[White "Laurincova, Kristyna"]
[Black "Pychova, Nela"]
[Result "1-0"]
[ECO "B46"]
[WhiteElo "1984"]
[BlackElo "2174"]
[Annotator "NA"]
[PlyCount "111"]
[EventDate "2019.06.15"]
[EventType "tourn"]
[EventCountry "CZE"]
[SourceTitle "playchess.com"]
[Source "ChessBase"]
[SourceQuality "1"]
[TimeControl "40/5400+30:1800+30"]

1. e4 {[%emt 0:00:00]} c5 {[%emt 0:00:00]} 2. Nf3 {[%emt 0:00:05]} Nc6 {[%emt 0:00:00]} 3. d4 {[%emt 0:00:12]} cxd4 {[%emt 0:00:01]} 4. Nxd4 {[%emt 0:00:06]} e6 {[%emt 0:00:34]} 5. Nc3 {[%emt 0:04:59]} a6 {[%emt 0:00:21]} 6. Be3 {[%emt 0:07:48]} Nge7 {[%emt 0:02:36]} 7. Be2 {[%emt 0:04:07]} Nxd4 {[%emt 0:01:05]} 8. Qxd4 {[%emt 0:02:01]} b5 {[%emt 0:16:44]} 9. O-O {[%emt 0:04:02]} Nc6 {[%emt 0:01:21]} 10. Qd2 {[%emt 0:02:39]} Be7 {[%emt 0:01:07]} 11. f4 {[%emt 0:01:38]} O-O {[%emt 0:02:35]} 12. Rad1 {[%emt 0:01:32]} d6 {[%emt 0:01:19]} 13. Qe1 {[%emt 0:03:35]} Qc7 {[%emt 0:05:30]} 14. Qg3 {[%emt 0:02:34]} Kh8 {[%emt 0:12:34]} 15. f5 {[%emt 0:22:33]} Ne5 {[%emt 0:04:11]} 16. Bd4 {[%emt 0:04:07]} Bf6 {[%emt 0:08:46]} 17. Qf4 {[%emt 0:05:23]} Bd7 {[%emt 0:10:16]} 18. g4 {[%emt 0:04:27]} h6 {[%emt 0:03:44]} 19. Qd2 {[%emt 0:06:12]} b4 {[%emt 0:02:52]} 20. Nb1 {[%emt 0:02:23]} Qb7 {[%emt 0:01:06]} 21. fxe6 {[%emt 0:09:42]} fxe6 {[%emt 0:05:02]} 22. Rxf6 {[%emt 0:01:18]} Rxf6 {[%emt 0:05:01]} 23. Bxe5 {[%emt 0:00:06]} dxe5 {[%emt 0:00:10]} 24. Qxd7 {[%emt 0:00:04]} Qb6+ {[%emt 0:07:41]} 25. Kh1 {[%emt 0:00:02]} Qf2 {[%emt 0:02:49]} 26. Qd3 {[%emt 0:01:03]} Rff8 {[%emt 0:01:45]} 27. Rf1 {[%emt 0:02:22]} Qh4 {[%emt 0:00:59]} 28. Qg3 {[%emt 0:00:01]} Qg5 {[%emt 0:03:08]} 29. Qe1 {[%emt 0:05:26]} Rxf1+ {[%emt 0:00:31]} 30. Qxf1 {[%emt 0:01:04]} Rd8 {[%emt 0:00:35]} 31. h3 {[%emt 0:01:13]} Kg8 {[%emt 0:00:26]} 32. Bc4 {[%emt 0:02:06]} Qg6 {[%emt 0:00:34]} 33. Qe2 {[%emt 0:00:36]} Rd4 {[%emt 0:00:34]} 34. Bd3 {[%emt 0:00:01]} Qg5 {[%emt 0:00:25]} 35. Nd2 {[%emt 0:00:23]} Qf4 {[%emt 0:00:16]} 36. Kg2 {[%emt 0:00:01]} Rd8 {[%emt 0:00:38]} 37. Qf2 {[%emt 0:00:51]} Qg5 {[%emt 0:00:10]} 38. Nf3 {[%emt 0:00:31]} Qf4 {[%emt 0:00:36]} 39. Qd2 {[%emt 0:01:20]} a5 {[%emt 0:00:50]} 40. Qxf4 {[%emt 0:00:44]} exf4 {[%emt 0:00:03]} 41. Ne5 {[%emt 0:05:36]} g5 {[%emt 0:02:51]} 42. Nc6 {[%emt 0:00:28]} Ra8 {[%emt 0:02:24]} 43. Bc4 {[%emt 0:01:08]} Kf7 {[%emt 0:00:38]} 44. Nd4 {[%emt 0:00:26]} Kf6 {[%emt 0:08:23]} 45. Bxe6 {[%emt 0:02:06]} Ke5 {[%emt 0:03:43]} 46. Bd5 {[%emt 0:00:01]} Ra6 {[%emt 0:00:55]} 47. Nf3+ {[%emt 0:04:28]} Kd6 {[%emt 0:02:36]} 48. h4 {[%emt 0:02:00]} gxh4 {[%emt 0:00:20]} 49. Nxh4 {[%emt 0:00:02]} Ke5 {[%emt 0:00:50]} 50. Nf3+ {[%emt 0:02:43]} Kd6 {[%emt 0:00:15]} 51. Nd4 {[%emt 0:00:58]} a4 {[%emt 0:01:10]} 52. Kf3 {[%emt 0:01:25]} a3 {[%emt 0:01:51]} 53. bxa3 {[%emt 0:01:32]} Rxa3+ {[%emt 0:00:13]} 54. Bb3 {[%emt 0:00:08]} Ra8 {[%emt 0:01:24]} 55. Nf5+ {[%emt 0:01:01]} Ke5 {[%emt 0:00:54]} 56. Nxh6 {[%emt 0:00:14]} 1-0

[Event "CZE-ch Women 2019"]
[Site "Prague"]
[Date "2019.06.20"]
[Round "6.4"]
[White "Kulovana, Eva"]
[Black "Rodshtein, Tereza"]
[Result "1-0"]
[ECO "D10"]
[WhiteElo "2208"]
[BlackElo "2213"]
[Annotator "NA"]
[PlyCount "87"]
[EventDate "2019.06.15"]
[EventType "tourn"]
[EventCountry "CZE"]
[SourceTitle "playchess.com"]
[Source "ChessBase"]
[SourceQuality "1"]
[TimeControl "40/5400+30:1800+30"]

1. d4 {[%emt 0:00:00]} d5 {[%emt 0:00:00]} 2. c4 {[%emt 0:00:00]} c6 {[%emt 0:00:00]} 3. cxd5 {[%emt 0:00:11]} cxd5 {[%emt 0:00:00]} 4. Nc3 {[%emt 0:00:09]} Nf6 {[%emt 0:00:10]} 5. Bf4 {[%emt 0:00:11]} Nc6 {[%emt 0:01:59]} 6. e3 {[%emt 0:00:34]} Bf5 {[%emt 0:01:39]} 7. Bd3 {[%emt 0:00:28]} Bxd3 {[%emt 0:02:26]} 8. Qxd3 {[%emt 0:00:07]} e6 {[%emt 0:00:45]} 9. Rc1 {[%emt 0:00:52]} Bd6 {[%emt 0:01:52]} 10. Bxd6 {[%emt 0:00:39]} Qxd6 {[%emt 0:00:07]} 11. Nf3 {[%emt 0:00:31]} O-O {[%emt 0:00:56]} 12. O-O {[%emt 0:00:11]} Rac8 {[%emt 0:01:22]} 13. a3 {[%emt 0:10:25]} a6 {[%emt 0:05:35]} 14. Rc2 {[%emt 0:12:21]} Rc7 {[%emt 0:03:00]} 15. Rfc1 {[%emt 0:00:28]} Rfc8 {[%emt 0:06:15]} 16. Na4 $11 {[%emt 0:01:59]} Na5 {[%emt 0:07:38]} 17. Nc5 {[%emt 0:02:07]} Nd7 {[%emt 0:21:23]} 18. Nxd7 {[%emt 0:04:46]} Qxd7 {[%emt 0:00:42]} 19. Ne5 {[%emt 0:01:54]} Qd6 {[%emt 0:00:48]} 20. b4 {[%emt 0:04:57]} f6 {[%emt 0:04:01]} 21. f4 {[%emt 0:26:38]} Rxc2 {[%emt 0:11:28]} 22. Rxc2 {[%emt 0:01:02]} Rxc2 {[%emt 0:00:08]} 23. Qxc2 {[%emt 0:00:06]} Nc4 {[%emt 0:02:03]} 24. Nd3 {[%emt 0:09:17]} a5 {[%emt 0:04:17]} 25. Qa4 {[%emt 0:03:23]} Kf7 {[%emt 0:00:11]} 26. bxa5 {[%emt 0:08:16]} Nxe3 {[%emt 0:00:25]} 27. Qb4 {[%emt 0:00:27]} Qa6 {[%emt 0:00:59]} 28. Qb3 {[%emt 0:02:29]} Qxa5 {[%emt 0:04:49]} 29. Qxb7+ {[%emt 0:00:10]} Kg6 {[%emt 0:00:01]} 30. Qb2 {[%emt 0:01:17]} Nc4 {[%emt 0:01:18]} 31. Qc2 {[%emt 0:00:38]} Kf7 {[%emt 0:06:11]} 32. a4 {[%emt 0:00:14]} Ke7 {[%emt 0:01:34]} 33. h3 {[%emt 0:00:45]} f5 {[%emt 0:01:51]} 34. Kh2 {[%emt 0:01:23]} Nd6 {[%emt 0:02:14]} 35. Ne5 {[%emt 0:00:54]} Kf6 {[%emt 0:02:17]} 36. Nc6 {[%emt 0:03:10]} Qc7 {[%emt 0:03:28]} 37. Qc5 {[%emt 0:00:47]} Nc8 {[%emt 0:03:25]} 38. Qf8+ {[%emt 0:00:41]} Kg6 {[%emt 0:00:01]} 39. Qe8+ {[%emt 0:00:46]} Kf6 {[%emt 0:00:27]} 40. Qf8+ {[%emt 0:00:34]} Kg6 {[%emt 0:00:03]} 41. Ne5+ {[%emt 0:32:21]} Kh6 {[%emt 0:30:09]} 42. Qe8 {[%emt 0:01:27]} Ne7 {[%emt 0:01:48]} 43. Nf7+ {[%emt 0:00:50]} Kg6 {[%emt 0:00:56]} 44. Ng5+ {[%emt 0:00:38]} 1-0

[Event "CZE-ch Women 2019"]
[Site "Prague"]
[Date "2019.06.20"]
[Round "6.5"]
[White "Olsarova, Karolina"]
[Black "Sikorova, Olga"]
[Result "1/2-1/2"]
[ECO "C07"]
[WhiteElo "2260"]
[BlackElo "2248"]
[Annotator "NA"]
[PlyCount "126"]
[EventDate "2019.06.15"]
[EventType "tourn"]
[EventCountry "CZE"]
[SourceTitle "playchess.com"]
[Source "ChessBase"]
[SourceQuality "1"]
[TimeControl "40/5400+30:1800+30"]

1. e4 {[%emt 0:00:00]} e6 {[%emt 0:00:00]} 2. d4 {[%emt 0:00:00]} d5 {[%emt 0:00:00]} 3. Nd2 {[%emt 0:00:00]} c5 {[%emt 0:00:00]} 4. exd5 {[%emt 0:00:00]} Qxd5 {[%emt 0:00:00]} 5. Ngf3 {[%emt 0:00:02]} cxd4 {[%emt 0:00:07]} 6. Bc4 {[%emt 0:00:08]} Qd6 {[%emt 0:00:04]} 7. O-O {[%emt 0:00:12]} Nf6 {[%emt 0:00:01]} 8. Nb3 {[%emt 0:00:11]} Nc6 {[%emt 0:00:08]} 9. Nbxd4 {[%emt 0:00:07]} Nxd4 {[%emt 0:00:06]} 10. Nxd4 {[%emt 0:00:08]} a6 {[%emt 0:00:06]} 11. Re1 {[%emt 0:00:20]} Qc7 {[%emt 0:00:58]} 12. Bf1 {[%emt 0:00:34]} Bd6 {[%emt 0:06:18]} 13. Nf5 {[%emt 0:00:35]} Bxh2+ {[%emt 0:03:48]} 14. Kh1 {[%emt 0:00:02]} O-O {[%emt 0:06:56]} 15. Nxg7 {[%emt 0:01:45]} Kxg7 {[%emt 0:09:42] [#]} 16. Qd4 $1 {[%emt 0:00:58]} e5 {[%emt 0:20:53]} 17. Qh4 $14 {[%emt 0:02:32]} Ng4 {[%emt 0:07:38]} 18. Bh6+ {[%emt 0:49:56]} Nxh6 {[%emt 0:00:14]} 19. Qg5+ {[%emt 0:00:03]} Kh8 {[%emt 0:00:07]} 20. Qxh6 {[%emt 0:00:23]} Qe7 {[%emt 0:07:51]} 21. Bd3 {[%emt 0:07:12]} f6 {[%emt 0:06:56]} 22. Kxh2 {[%emt 0:01:47]} Bd7 {[%emt 0:05:28]} 23. Re3 {[%emt 0:02:42]} Rg8 {[%emt 0:04:09]} 24. Be4 {[%emt 0:11:03]} Rg7 {[%emt 0:05:46]} 25. Rd1 {[%emt 0:04:25]} Rag8 {[%emt 0:03:02]} 26. Rxd7 {[%emt 0:10:58]} Qxd7 {[%emt 0:00:19]} 27. Qxf6 {[%emt 0:00:03]} Qe7 {[%emt 0:01:00]} 28. Qh6 {[%emt 0:00:08]} Rg4 {[%emt 0:02:22]} 29. g3 {[%emt 0:00:42]} Qg7 {[%emt 0:05:45]} 30. Qe6 {[%emt 0:01:18]} Rg5 {[%emt 0:01:37]} 31. Rd3 {[%emt 0:01:52]} Rh5+ {[%emt 0:00:23]} 32. Kg2 {[%emt 0:00:20]} Rh6 {[%emt 0:00:07]} 33. Qd5 {[%emt 0:01:51]} b6 34. Rf3 {[%emt 0:00:31]} Rf6 {[%emt 0:04:28]} 35. Qxe5 {[%emt 0:02:36]} Rxf3 {[%emt 0:00:02]} 36. Qxg7+ {[%emt 0:00:04]} Kxg7 {[%emt 0:00:11]} 37. Kxf3 {[%emt 0:00:05]} h6 {[%emt 0:00:35]} 38. Ke3 {[%emt 0:02:12]} Kf6 {[%emt 0:00:22]} 39. Bb7 {[%emt 0:00:47]} a5 {[%emt 0:00:58]} 40. Kd4 {[%emt 0:01:15]} Rg7 {[%emt 0:00:50]} 41. Be4 {[%emt 0:03:21]} Rd7+ {[%emt 0:00:53]} 42. Bd5 {[%emt 0:05:15]} Re7 {[%emt 0:00:23]} 43. f3 {[%emt 0:02:02]} h5 {[%emt 0:01:17]} 44. f4 {[%emt 0:00:24]} Rg7 {[%emt 0:06:05]} 45. Bf3 {[%emt 0:00:15]} Rxg3 {[%emt 0:00:06]} 46. Bxh5 {[%emt 0:00:04]} Rg2 {[%emt 0:00:48]} 47. Kc3 {[%emt 0:02:27]} Kf5 {[%emt 0:03:18]} 48. a4 {[%emt 0:05:46]} Kxf4 {[%emt 0:00:08]} 49. Be8 {[%emt 0:00:48]} Ke5 {[%emt 0:00:25]} 50. Bc6 {[%emt 0:03:05]} Rg4 {[%emt 0:02:22]} 51. b3 {[%emt 0:00:28]} Kd6 {[%emt 0:00:23]} 52. Bb5 {[%emt 0:00:18]} Kc5 {[%emt 0:00:07]} 53. Bd3 {[%emt 0:00:06]} Rg3 {[%emt 0:09:06]} 54. Kb2 {[%emt 0:00:59]} Kd4 {[%emt 0:00:01]} 55. Bb5 {[%emt 0:00:15]} Rg7 {[%emt 0:00:41]} 56. Bd3 {[%emt 0:00:10]} Rc7 {[%emt 0:00:09]} 57. Bb5 {[%emt 0:00:16]} Ke3 {[%emt 0:00:07]} 58. Bd3 {[%emt 0:00:14]} Kd2 {[%emt 0:00:02]} 59. Be4 {[%emt 0:00:43]} Rc8 {[%emt 0:00:21]} 60. Bf5 {[%emt 0:00:13]} Rc5 {[%emt 0:00:13]} 61. Bd3 {[%emt 0:00:13]} Rc3 {[%emt 0:00:43]} 62. Be4 {[%emt 0:00:33]} Re3 {[%emt 0:00:08]} 63. Bd3 {[%emt 0:01:30]} Re5 {[%emt 0:04:12]} 1/2-1/2